fUSD/lending_fUSD_20250530
["ID","MTS","AMOUNT","RATE_DAILY","PERIOD"]
[363204445,1748621685658,715.45,0.00023013,2]
[363204446,1748621685701,420.0,0.00021917,2]
[363204447,1748621685822,420.0,0.00023561,2]
[363204448,1748621685864,487.02,0.00022191,2]
[363204449,1748621685909,715.45,0.00023287,2]
[363204450,1748621685952,420.0,0.00022191,2]
[363204451,1748621686005,420.0,0.00023835,2]
[363204452,1748621686049,487.02,0.00022465,2]
[363204453,1748621686094,715.45,0.00023561,2]
[363204454,1748621686138,420.0,0.00022465,2]
[363204455,1748621686183,420.0,0.00021917,2]
[363204456,1748621686227,487.02,0.00022739,2]
[363204457,1748621686278,420.0,0.00022739,2]
[363204458,1748621686322,420.0,0.00022191,2]
[363204459,1748621686365,715.45,0.00023835,2]
[363204460,1748621686481,487.02,0.00023013,2]
[363204461,1748621686523,420.0,0.00023013,2]
[363204462,1748621686573,420.0,0.00022465,2]
[363204463,1748621686624,487.02,0.00023287,2]
[363204464,1748621686672,286.77,0.00023287,2]
[363204465,1748621686719,420.0,0.00022739,2]
[363204466,1748621686767,487.02,0.00023561,2]
[363204467,1748621686810,5141.24,0.00021917,2]
[363204468,1748621686856,630.57,0.00021917,2]
[363204469,1748621686906,420.0,0.00023013,2]
[363204470,1748621686953,487.02,0.00023835,2]
[363204471,1748621686998,5141.24,0.00022191,2]
[363204472,1748621687043,630.57,0.00022191,2]
[363204473,1748621687106,630.57,0.00022465,2]
[363204474,1748621687157,420.0,0.00023287,2]
[363204475,1748621687207,630.57,0.00022739,2]
[363204476,1748621687257,5141.24,0.00022465,2]
[363204477,1748621687307,420.0,0.00023561,2]
[363204478,1748621687356,630.57,0.00023013,2]
[363204479,1748621687411,5141.24,0.00022739,2]
[363204480,1748621687455,257.32,0.00023835,2]
[363204481,1748621687512,630.57,0.00023287,2]
[363204482,1748621687565,5141.24,0.00023013,2]
[363204483,1748621687618,630.57,0.00023561,2]
[363204484,1748621687671,5141.24,0.00023287,2]
[363204485,1748621687718,350.25293178,0.00021917,2]
[363204486,1748621687770,630.57,0.00023835,2]
[363204487,1748621687827,5141.24,0.00023561,2]
[363204488,1748621687884,420.0,0.00021917,2]
[363204489,1748621687938,5141.24,0.00023835,2]
[363204490,1748621687985,420.0,0.00022191,2]
[363204491,1748621688048,420.0,0.00022465,2]
[363204492,1748621688102,813.51,0.00021917,2]
[363204493,1748621688161,420.0,0.00022739,2]
[363204494,1748621688216,813.51,0.00022191,2]
[363204495,1748621688289,420.0,0.00023013,2]
[363204496,1748621688340,420.0,0.00021917,2]
[363204497,1748621688397,813.51,0.00022465,2]
[363204498,1748621688447,420.0,0.00023287,2]
[363204499,1748621688493,420.0,0.00022191,2]
[363204500,1748621688546,813.51,0.00022739,2]
[363204501,1748621688589,420.0,0.00023561,2]
[363204502,1748621688637,420.0,0.00022465,2]
[363204503,1748621688699,150.0,0.00024,2]
[363204504,1748621688747,813.51,0.00023013,2]
[363204505,1748621688809,420.0,0.00023835,2]
[363204506,1748621688854,420.0,0.00022739,2]
[363204507,1748621688909,813.51,0.00023287,2]
[363204508,1748621689025,420.0,0.00023013,2]
[363204509,1748621689077,813.51,0.00023561,2]
[363204510,1748621689139,420.0,0.00023287,2]
[363204511,1748621689188,420.0,0.00021917,2]
[363204512,1748621689241,813.51,0.00023835,2]
[363204513,1748621689303,420.0,0.00021917,2]
[363204514,1748621689349,420.0,0.00023561,2]
[363204515,1748621689396,420.0,0.00022191,2]
[363204516,1748621689458,420.0,0.00022191,2]
[363204517,1748621689506,420.0,0.00022465,2]
[363204518,1748621689552,420.0,0.00023835,2]
[363204519,1748621689862,420.0,0.00022465,2]
[363204520,1748621689911,420.0,0.00022739,2]
[363204521,1748621689970,420.0,0.00022739,2]
[363204522,1748621690023,420.0,0.00023013,2]
[363204523,1748621690081,420.0,0.00021917,2]
[363204524,1748621690133,420.0,0.00023287,2]
[363204525,1748621690196,420.0,0.00022191,2]
[363204526,1748621690251,420.0,0.00023561,2]
[363204527,1748621690300,420.0,0.00023013,2]
[363204528,1748621690356,420.0,0.00022465,2]
[363204529,1748621690402,420.0,0.00021917,2]
[363204530,1748621690451,420.0,0.00023835,2]
[363204531,1748621690494,420.0,0.00023287,2]
[363204532,1748621690557,420.0,0.00022739,2]
[363204533,1748621690605,439.24,0.00022191,2]
[363204534,1748621690646,420.0,0.00023561,2]
[363204535,1748621690705,420.0,0.00023013,2]
[363204536,1748621690820,420.0,0.00023835,2]
[363204537,1748621690875,420.0,0.00023287,2]
[363204538,1748621690928,420.0,0.00021917,2]
[363204539,1748621690995,420.0,0.00022191,2]
[363204540,1748621691035,200.64,0.00023561,2]
[363204541,1748621691086,420.0,0.00022465,2]
[363204542,1748621691383,420.0,0.00021917,2]
[363204543,1748621691421,420.0,0.00022739,2]
[363204544,1748621691461,516.32,0.00022191,2]
[363204545,1748621691667,420.0,0.00023013,2]
[363204546,1748621691702,740.09,0.00021917,2]
[363204547,1748621691762,420.0,0.00023287,2]
[363204548,1748621691800,740.09,0.00022191,2]
[363204549,1748621691837,420.0,0.00021917,2]
[363204550,1748621691877,46279.26,0.00021917,2]
[363204551,1748621691912,420.0,0.00023561,2]
[363204552,1748621691963,740.09,0.00022465,2]
[363204553,1748621692022,420.0,0.00022191,2]
[363204554,1748621692064,46279.26,0.00022191,2]
[363204555,1748621692100,420.0,0.00023835,2]
[363204556,1748621692191,740.09,0.00022739,2]
[363204557,1748621692235,46279.26,0.00022465,2]
[363204558,1748621692294,740.09,0.00023013,2]
[363204559,1748621692339,46279.26,0.00022739,2]
[363204560,1748621692380,420.0,0.00022465,2]
[363204561,1748621692421,740.09,0.00023287,2]
[363204562,1748621692454,420.0,0.00021917,2]
[363204563,1748621692496,46279.26,0.00023013,2]
[363204564,1748621692535,420.0,0.00022739,2]
[363204565,1748621692572,740.09,0.00023561,2]
[363204566,1748621692612,420.0,0.00022191,2]
[363204567,1748621692645,46279.26,0.00023287,2]
[363204568,1748621692685,420.0,0.00023013,2]
[363204569,1748621692718,740.09,0.00023835,2]
[363204570,1748621692764,420.0,0.00022465,2]
[363204571,1748621692803,46279.26,0.00023561,2]
[363204572,1748621692851,420.0,0.00023287,2]
[363204573,1748621692888,46279.26,0.00023835,2]
[363204574,1748621692937,420.0,0.00023561,2]
[363204575,1748621692979,420.0,0.00022739,2]
[363204576,1748621693024,266.85,0.00023835,2]
[363204577,1748621693074,150.84,0.00023013,2]
[363204578,1748621693169,429.06,0.00021917,2]
[363204579,1748621693250,151.0,0.00023835,7]
[363204580,1748621693292,420.0,0.00021917,2]
[363204581,1748621693342,420.0,0.00022191,2]
[363204582,1748621693394,203.52,0.00022465,2]
[363204583,1748621693550,420.0,0.00021917,2]
[363204584,1748621693593,420.0,0.00022191,2]
[363204585,1748621693631,420.0,0.00022465,2]
[363204586,1748621693674,420.0,0.00022739,2]
[363204587,1748621693724,718.17,0.00021917,2]
[363204588,1748621693764,1885.8,0.00021917,2]
[363204589,1748621693803,420.0,0.00023013,2]
[363204590,1748621693841,718.17,0.00022191,2]
[363204591,1748621693890,420.0,0.00021917,2]
[363204592,1748621694123,1885.8,0.00022191,2]
[363204593,1748621694270,718.17,0.00022465,2]
[363204594,1748621694317,180.66,0.00022191,2]
[363204595,1748621694351,1885.8,0.00022465,2]
[363204596,1748621694397,718.17,0.00022739,2]
[363204597,1748621694431,1505.98,0.00021917,2]
[363204598,1748621694463,1885.8,0.00022739,2]
[363204599,1748621694496,356.64,0.00023287,2]
[363204600,1748621694569,420.0,0.00021917,2]
[363204601,1748621694603,718.17,0.00023013,2]
[363204602,1748621694642,1505.98,0.00022191,2]
[363204603,1748621694677,1885.8,0.00023013,2]
[363204604,1748621694714,718.17,0.00023287,2]
[363204605,1748621694746,1885.8,0.00023287,2]
[363204606,1748621694783,420.0,0.00021917,2]
[363204607,1748621694822,1505.98,0.00022465,2]
[363204608,1748621694861,718.17,0.00023561,2]
[363204609,1748621694964,420.0,0.00022191,2]
[363204610,1748621694999,1885.8,0.00023561,2]
[363204611,1748621695036,538.4,0.00022191,2]
[363204612,1748621695072,1505.98,0.00022739,2]
[363204613,1748621695108,718.17,0.00023835,2]
[363204614,1748621695147,420.0,0.00022465,2]
[363204615,1748621695182,1885.8,0.00023835,2]
[363204616,1748621695217,1505.98,0.00023013,2]
[363204617,1748621695258,420.0,0.00021917,2]
[363204618,1748621695293,420.0,0.00022739,2]
[363204619,1748621695337,1505.98,0.00023287,2]
[363204620,1748621695377,420.0,0.00022191,2]
[363204621,1748621695436,1505.98,0.00023561,2]
[363204622,1748621695475,420.0,0.00022465,2]
[363204623,1748621695519,420.0,0.00023013,2]
[363204624,1748621695557,1505.98,0.00023835,2]
[363204625,1748621695596,420.0,0.00021917,2]
[363204626,1748621695633,528.2,0.00022739,2]
[363204627,1748621695680,420.0,0.00022191,2]
[363204628,1748621695732,420.0,0.00023287,2]
[363204629,1748621695770,420.0,0.00022465,2]
[363204630,1748621695814,420.0,0.00021917,2]
[363204631,1748621695860,420.0,0.00023561,2]
[363204632,1748621695895,420.0,0.00022739,2]
[363204633,1748621695935,420.0,0.00022191,2]
[363204634,1748621695974,245.04,0.00023013,2]
[363204635,1748621696011,420.0,0.00023835,2]
[363204636,1748621696056,420.0,0.00022465,2]
[363204637,1748621696123,420.0,0.00022739,2]
[363204638,1748621696388,420.0,0.00023013,2]
[363204639,1748621696634,420.0,0.00023287,2]
[363204640,1748621696898,154.66205202,0.00023562,2]
[363204641,1748621696979,420.0,0.00023561,2]
[363204642,1748621697022,151.0,0.00023835,7]
[363204643,1748621697058,154.66205202,0.00023808,2]
[363204644,1748621697269,420.0,0.00023835,2]
[363204645,1748621697327,2469.06,0.00021917,2]
[363204646,1748621697867,2469.06,0.00022191,2]
[363204647,1748621698127,2469.06,0.00022465,2]
[363204648,1748621698416,2469.06,0.00022739,2]
[363204649,1748621698693,2469.06,0.00023013,2]
[363204650,1748621698946,2469.06,0.00023287,2]
[363204651,1748621699207,2469.06,0.00023561,2]
[363204652,1748621699485,2469.06,0.00023835,2]
[363204653,1748621699638,420.0,0.00021917,2]
[363204654,1748621699796,1261.57,0.00021917,2]
[363204655,1748621699895,420.0,0.00022191,2]
[363204656,1748621700072,1261.57,0.00022191,2]
[363204657,1748621700207,420.0,0.00022465,2]
[363204658,1748621700311,1261.57,0.00022465,2]
[363204659,1748621700482,420.0,0.00022739,2]
[363204660,1748621700556,1261.57,0.00022739,2]
[363204661,1748621700731,420.0,0.00023013,2]
[363204662,1748621700825,1261.57,0.00023013,2]
[363204663,1748621701069,420.0,0.00023287,2]
[363204664,1748621701336,420.0,0.00023561,2]
[363204665,1748621701786,1261.57,0.00023287,2]
[363204666,1748621701823,2349.89,0.00021917,2]
[363204667,1748621701862,444.4042407,0.00023835,2]
[363204668,1748621701927,1261.57,0.00023561,2]
[363204669,1748621701996,2349.89,0.00022191,2]
[363204670,1748621702046,1261.57,0.00023835,2]
[363204671,1748621702127,2349.89,0.00022465,2]
[363204672,1748621702282,420.0,0.00021917,2]
[363204673,1748621702389,2349.89,0.00022739,2]
[363204674,1748621702784,420.0,0.00022191,2]
[363204675,1748621702827,2349.89,0.00023013,2]
[363204676,1748621702865,151.677918,0.00023835,7]
[363204677,1748621702909,420.0,0.00022465,2]
[363204678,1748621702949,2349.89,0.00023287,2]
[363204679,1748621703111,420.0,0.00022739,2]
[363204680,1748621703170,2349.89,0.00023561,2]
[363204681,1748621703369,420.0,0.00023013,2]
[363204682,1748621703425,2349.89,0.00023835,2]
[363204683,1748621703645,420.0,0.00023287,2]
[363204684,1748621703915,420.0,0.00023561,2]
[363204685,1748621704176,420.0,0.00023835,2]
[363204686,1748621704287,420.0,0.00021917,2]
[363204687,1748621704605,420.0,0.00022191,2]
[363204688,1748621704874,420.0,0.00022465,2]
[363204689,1748621705486,420.0,0.00022739,2]
[363204690,1748621705601,7768.38,0.000229,2]
[363204691,1748621705817,420.0,0.00023013,2]
[363204692,1748621706056,554.24,0.00021917,2]
[363204693,1748621706096,420.0,0.00023287,2]
[363204694,1748621706314,554.24,0.00022191,2]
[363204695,1748621706353,420.0,0.00021917,2]
[363204696,1748621706395,420.0,0.00023561,2]
[363204697,1748621706565,554.24,0.00022465,2]
[363204698,1748621706604,420.0,0.00022191,2]
[363204699,1748621706642,420.0,0.00023835,2]
[363204700,1748621706832,420.0,0.00022465,2]
[363204701,1748621706878,554.24,0.00022739,2]
[363204702,1748621707085,420.0,0.00022739,2]
[363204703,1748621707130,554.24,0.00023013,2]
[363204704,1748621707291,7768.38,0.000232,2]
[363204705,1748621707339,420.0,0.00023013,2]
[363204706,1748621707581,420.0,0.00023287,2]
[363204707,1748621707625,554.24,0.00023287,2]
[363204708,1748621707734,968.72,0.00021917,2]
[363204709,1748621707835,420.0,0.00023561,2]
[363204710,1748621707921,554.24,0.00023561,2]
[363204711,1748621707995,968.72,0.00022191,2]
[363204712,1748621708287,420.0,0.00023835,2]
[363204713,1748621708329,554.24,0.00023835,2]
[363204714,1748621708371,968.72,0.00022465,2]
[363204715,1748621708415,4933.35,0.00021917,2]
[363204716,1748621708578,4933.35,0.00022191,2]
[363204717,1748621708628,968.72,0.00022739,2]
[363204718,1748621708858,2382.64273082,0.00022465,2]
[363204719,1748622339867,-206.56588531,0.00019744,2]
[363204724,1748622516790,1150.580001,0.000151,2]
[363204785,1748622631951,-1048.5475,0.00019699,2]
[363205062,1748622656237,-151.4525,0.00019699,2]
[363205063,1748622656247,-114333.67835063,0.000197,2]
[363205064,1748622658533,-42027.09095733,0.000197,2]
[363205065,1748622658566,-36289.72069204,0.000197,2]
[363205066,1748622658576,-176.25,0.00019844,2]
[363205067,1748622658586,-12854.45748793,0.000199,2]
[363205068,1748622658596,-528.03370998,0.000199,2]
[363205069,1748622658606,-4395.72129476,0.000199,2]
[363205070,1748622658615,-37011.05873226,0.000199,2]
[363205071,1748622658625,-582.6522211,0.000199,2]
[363205072,1748622658634,-164.99194135,0.000199,2]
[363205073,1748622658644,-500.0,0.00019973,2]
[363205074,1748622658653,-500.0,0.00019973,2]
[363205075,1748622658663,-500.0,0.00019973,2]
[363205076,1748622658673,-161.14134848,0.00019973,2]
[363205077,1748622658683,-500.0,0.00019973,2]
[363205078,1748622658693,-500.0,0.00019973,2]
[363205079,1748622658702,-500.0,0.00019973,2]
[363205080,1748622658712,-500.0,0.00019973,2]
[363205081,1748622658721,-500.0,0.00019973,2]
[363205082,1748622658731,-4395.72129474,0.00019981,2]
[363205083,1748622658741,-244.51267555,0.0001999,2]
[363205084,1748622658751,-222.68775044,0.00019999,2]
[363205085,1748622658763,-500.0,0.00019999,2]
[363205086,1748622658773,-500.0,0.00019999,2]
[363205087,1748622658783,-500.0,0.00019999,2]
[363205088,1748622658792,-500.0,0.00019999,2]
[363205089,1748622658801,-500.0,0.00019999,2]
[363205090,1748622658811,-500.0,0.00019999,2]
[363205091,1748622658820,-500.0,0.00019999,2]
[363205092,1748622658830,-500.0,0.00019999,2]
[363205093,1748622658840,-625.41905285,0.00019999,2]
[363205094,1748622658849,-500.0,0.00019999,2]
[363205095,1748622658858,-500.0,0.00019999,2]
[363205096,1748622658868,-500.0,0.00019999,2]
[363205097,1748622658878,-500.0,0.00019999,2]
[363205098,1748622658888,-500.0,0.00019999,2]
[363205099,1748622658897,-500.0,0.00019999,2]
[363205100,1748622658907,-500.0,0.00019999,2]
[363205101,1748622658917,-500.0,0.00019999,2]
[363205102,1748622658927,-500.0,0.00019999,2]
[363205103,1748622658937,-500.0,0.00019999,2]
[363205104,1748622658947,-500.0,0.00019999,2]
[363205105,1748622658957,-500.0,0.00019999,2]
[363205106,1748622658967,-500.0,0.00019999,2]
[363205107,1748622658977,-500.0,0.00019999,2]
[363205108,1748622658987,-500.0,0.00019999,2]
[363205109,1748622658996,-500.0,0.00019999,2]
[363205110,1748622659010,-500.0,0.00019999,2]
[363205111,1748622659020,-500.0,0.00019999,2]
[363205112,1748622659030,-500.0,0.00019999,2]
[363205113,1748622659040,-500.0,0.00019999,2]
[363205114,1748622659051,-500.0,0.00019999,2]
[363205115,1748622659062,-500.0,0.00019999,2]
[363205116,1748622659072,-500.0,0.00019999,2]
[363205117,1748622659082,-500.0,0.00019999,2]
[363205118,1748622659092,-500.0,0.00019999,2]
[363205119,1748622659103,-500.0,0.00019999,2]
[363205120,1748622659114,-500.0,0.00019999,2]
[363205121,1748622659125,-500.0,0.00019999,2]
[363205122,1748622659138,-500.0,0.00019999,2]
[363205123,1748622659148,-500.0,0.00019999,2]
[363205124,1748622659159,-500.0,0.00019999,2]
[363205125,1748622659168,-500.0,0.00019999,2]
[363205126,1748622659178,-500.0,0.00019999,2]
[363205127,1748622659187,-500.0,0.00019999,2]
[363205128,1748622659198,-500.0,0.00019999,2]
[363205129,1748622659208,-208.31363097,0.00019999,2]
[363205130,1748622659218,-500.0,0.00019999,2]
[363205131,1748622659229,-495.69287178,0.00019999,2]
[363205132,1748622659239,-500.0,0.00019999,2]
[363205133,1748622659248,-500.0,0.00019999,2]
[363205134,1748622659260,-2544.55294653,0.00019999,2]
[363205135,1748622659270,-1793.90534549,0.00019999,2]
[363205136,1748622659280,-288.52840481,0.00019999,2]
[363205137,1748622659290,-429.73507822,0.00019999,2]
[363205138,1748622659300,-212.31141055,0.00019999,2]
[363205139,1748622659310,-233.31877656,0.00019999,2]
[363205140,1748622659320,-184.17217638,0.00019999,2]
[363205141,1748622659330,-20000.0,0.00019999,2]
[363205142,1748622659340,-797677.41723652,0.0002,2]
[363205143,1748622659349,-531.58466121,0.0002,2]
[363205144,1748622659359,-4000.0,0.0002,4]
[363205145,1748622659369,-4000.0,0.0002,4]
[363205146,1748622659379,-4000.0,0.0002,4]
[363205147,1748622659389,-4000.0,0.0002,4]
[363205148,1748622659399,-4000.0,0.0002,4]
[363205149,1748622659408,-4000.0,0.0002,4]
[363205150,1748622659418,-9798812.2839425,0.0002,2]
[363205151,1748622659431,-525.27475,0.0002,2]
[363205152,1748622659459,-1588.90000045,0.0002,2]
[363205154,1748622660105,-5150.0,0.0002,2]
[363205155,1748622662251,-285.65770566,0.0002,2]
[363205156,1748622662270,-415.33722645,0.0002,2]
[363205157,1748622662282,-4761315.49602891,0.0002,2]
[363205158,1748622662292,-2260.13008014,0.0002,2]
[363205159,1748622662303,-302.21648308,0.0002,2]
[363205160,1748622662313,-636952.79403455,0.0002,2]
[363205161,1748622662397,-500.0,0.00019999,2]
[363205162,1748622662407,-648.87259251,0.00019999,2]
[363205163,1748622662418,-851.45941166,0.0002,2]
[363205164,1748622662430,-540.15000028,0.0002,2]
[363205165,1748622662442,-10475.5,0.0002,2]
[363205166,1748622662462,-1131.30812,0.0002,2]
[363205167,1748622662517,-1125.47928194,0.0002,2]
[363205168,1748622662540,-11557.1046,0.0002,2]
[363205169,1748622662551,-1779.94885367,0.0002,2]
[363205170,1748622662571,-5426.16860773,0.0002,2]
[363205171,1748622662582,-623.63131312,0.0002,2]
[363205172,1748622662593,-496.30219343,0.0002,2]
[363205173,1748622666592,932.44,0.00018664,2]
[363205174,1748622673310,1757.0,0.000173,5]
[363205176,1748622807142,1000.0,0.00019,3]
[363205177,1748622834811,972.6976484,0.00019,2]
[363205178,1748622897361,23900.0,0.00019358,2]
[363205179,1748622967472,1500.0,0.00019243,2]
[363205182,1748623090560,165.26,0.00019247,2]
[363205183,1748623108492,298.93,0.00019297,2]
[363205184,1748623202503,-304.24579901,0.00019601,2]
[363205185,1748623214023,10728.47,0.00019125,2]
[363205186,1748623221848,1852.42,0.00019125,2]
[363205187,1748623232017,169.0,0.000161,5]
[363205188,1748623331549,205.0,0.0001909,2]
[363205189,1748623359137,313.0,0.00019144,2]
[363205190,1748623427511,150.0,0.0001914,7]
[363205191,1748623459184,5000.01,0.00019163,2]
[363205192,1748623522418,-154.62860952,0.00019502,2]
[363205193,1748623525130,-72.12227548,0.00019502,2]
[363205194,1748623560511,1000.0,0.00019094,2]
[363205195,1748623581732,7206.46,0.00019067,2]
[363205197,1748623676907,-151.31886737,0.00019502,2]
[363205198,1748623678514,-155.02508663,0.00019502,2]
[363205199,1748623690233,219.76,0.00013699,2]
[363205201,1748623704844,-153.92442386,0.000196,2]
[363205206,1748623755231,-267.50273047,0.00019502,2]
[363205207,1748623758695,-151.0,0.00019502,2]
[363205208,1748623759976,1091.97,0.00017122,2]
[363205209,1748623760222,1091.97,0.00019386,2]
[363205215,1748623794831,650.51,0.00019027,2]
[363205234,1748623832110,-57.08796642,0.000196,2]
[363205235,1748623832120,-169.87,0.00019639,2]
[363205236,1748623832131,-250.0,0.00019649,2]
[363205237,1748623832141,-300.0,0.00019699,2]
[363205238,1748623832151,-267.88583358,0.00019699,2]
[363205239,1748623832373,-932.11416642,0.00019699,2]
[363205240,1748623832383,-300.0,0.00019699,2]
[363205241,1748623832393,-853.96983358,0.000197,2]
[363205242,1748623832406,-1155.84133603,0.000197,2]
[363205243,1748623832425,-16337.88883039,0.000197,2]
[363205244,1748623832435,-250.0,0.00019751,2]
[363205246,1748623832444,-151.0,0.00019795,2]
[363205247,1748623832454,-250.0,0.00019871,2]
[363205248,1748623832464,-200.0,0.00019886,2]
[363205249,1748623832474,-1000.0,0.00019899,2]
[363205250,1748623832484,-405.0,0.00019899,2]
[363205251,1748623832494,-2208.1111696,0.00019899,2]
[363205252,1748623832505,-3338.99349956,0.00019899,2]
[363205253,1748623832516,-157.66341028,0.000199,2]
[363205254,1748623832529,-500.0,0.000199,2]
[363205255,1748623832539,-173.04341016,0.000199,2]
[363205256,1748623832553,-399.94434115,0.000199,2]
[363205257,1748623837534,-435.435,0.000199,2]
[363205258,1748623837605,-302.137531,0.00019502,2]
[363205259,1748623837614,-10439.52391592,0.000199,2]
[363205262,1748623838032,-264.61209253,0.000199,2]
[363205271,1748623838087,-6627.34502208,0.000199,2]
[363205273,1748623838096,-163.75530596,0.000199,2]
[363205275,1748623838105,-218.24928666,0.000199,2]
[363205277,1748623838115,-183.89152711,0.00019973,2]
[363205279,1748623838124,-511.64314303,0.00019973,2]
[363205281,1748623838133,-500.0,0.00019973,2]
[363205283,1748623838142,-500.0,0.00019973,2]
[363205285,1748623838151,-500.0,0.00019973,2]
[363205287,1748623838163,-500.0,0.00019973,2]
[363205289,1748623838172,-500.0,0.00019973,2]
[363205291,1748623838181,-500.0,0.00019973,2]
[363205293,1748623838191,-673.38709754,0.00019974,2]
[363205295,1748623838200,-151.0,0.00019988,2]
[363205297,1748623838209,-500.0,0.00019999,2]
[363205299,1748623838218,-500.0,0.00019999,2]
[363205301,1748623838227,-500.0,0.00019999,2]
[363205303,1748623838237,-500.0,0.00019999,2]
[363205305,1748623838246,-500.0,0.00019999,2]
[363205308,1748623838257,-500.0,0.00019999,2]
[363205310,1748623838266,-500.0,0.00019999,2]
[363205312,1748623838276,-465.58735448,0.00019999,2]
[363205313,1748623838285,-208.50444155,0.00019999,2]
[363205315,1748623838294,-186.52828994,0.00019999,2]
[363205317,1748623838304,-2965.74972988,0.00019999,7]
[363205319,1748623838314,-397.02593002,0.00019999,2]
[363205321,1748623838324,-934.097,0.00019999,2]
[363205323,1748623838334,-164.27,0.00019999,2]
[363205326,1748623838345,-5000.0,0.00019999,2]
[363205327,1748623838354,-3800.0,0.00019999,3]
[363205330,1748623838364,-239.6085919,0.00019999,2]
[363205332,1748623838373,-325.624914,0.00019999,2]
[363205334,1748623838383,-263.31690498,0.00019999,2]
[363205336,1748623838392,-21000.0,0.00019999,2]
[363205338,1748623838402,-6167875.49206963,0.0002,2]
[363205341,1748623838422,-437.93749998,0.0002,2]
[363205343,1748623838433,-1570.00000011,0.0002,2]
[363205345,1748623838445,-346.79705541,0.0002,2]
[363205528,1748623840295,-300.0,0.00019998,2]
[363205529,1748623840305,-10137.0,0.0002,2]
[363205533,1748623840350,-1579.9999996,0.0002,2]
[363205540,1748623840408,-640.92650644,0.0002,2]
[363205543,1748623840423,-2553.25935037,0.0002,2]
[363205556,1748623840542,-226.39618922,0.0002,2]
[363205634,1748623841298,-275.555235,0.0002,2]
[363205641,1748623841353,-261.43559666,0.0002,2]
[363205844,1748623843904,300.0,0.000194,7]
[363205850,1748623846013,-270.22659446,0.0002,2]
[363205853,1748623846029,-1802.05019338,0.0002,2]
[363205855,1748623846040,-3654.84802673,0.0002,2]
[363205857,1748623846052,-1045.8,0.0002,2]
[363205860,1748623846074,-1706153.19246949,0.0002,2]
[363205863,1748623846083,-306.85622533,0.0002,2]
[363205866,1748623846093,-336.15047502,0.0002,2]
[363205869,1748623846103,-500.0,0.0002,2]
[363205872,1748623846114,-500.0,0.0002,2]
[363205875,1748623846126,-500.0,0.0002,2]
[363205880,1748623846136,-500.0,0.0002,2]
[363205882,1748623846146,-500.0,0.0002,2]